Cogmind - Beta 13 @@@ ROGUE MODE // 2024.07.24 @ 22:37:29 Player: VraethrDalkr Result: Destroyed by G-34 Mercenary with Small Laser Performance ------------- Evolutions (0) 0 Regions Visited (2) 400 Robots Destroyed (32) 160 Value Destroyed (912) 912 Prototype IDs (0) 0 Alien Tech Used (0) 0 Bonus (0) 0 TOTAL SCORE: 1472 Bonus ------- None Cogmind --------- Core Integrity 0/250 Matter 290/300 Energy 250/250 System Corruption 0% Temperature Cool (6) Movement Treading (160) Location -10/Mines Parts ------- > --- POWER (1) -------- Ion Engine > --- PROPULSION (2) --- Light Treads Light Treads > --- UTILITY (2) ------ Heat Sink Medium Storage Unit > --- WEAPON (2) ------- Particle Gun Assault Rifle > --- INVENTORY (10) --- Ion Engine Ion Engine Light Treads Improved Heat Sink Medium Storage Unit High-capacity Storage Unit EM Pulse Gun Small Laser Small Laser Light Cannon Peak State ------------ > --- POWER ------------ Ion Engine > --- PROPULSION ------- Light Treads Light Treads > --- UTILITY ---------- Small Storage Unit Improved Terrain Scanner > --- WEAPON ----------- Small Laser Assault Rifle > --- INVENTORY -------- Ion Engine Light Ion Engine Heat Sink Heat Sink EM Pulse Gun Small Laser Light Assault Rifle Mining Laser [Rating: 9] Favorites ----------- Power Ion Engine Engine Ion Engine Propulsion Light Treads Treads Light Treads Utility Heat Sink Device Heat Sink Storage Medium Storage Unit Weapon Assault Rifle Energy Gun Small Laser Ballistic Gun Assault Rifle Build | -11 -10 -10 ------- Run | Yrd Mat Min Slots Evolved . | . . . Power . | . . . Propulsion . | . . . Utility . | . . . Weapon . | . . . Parts Attached 37 | 7 24 6 Power 10 | 1 6 3 Engine 10 | 1 6 3 Core . | . . . Reactor . | . . . Propulsion 9 | 2 6 1 Treads 9 | 2 6 1 Leg . | . . . Wheel . | . . . Hover . | . . . Flight . | . . . Utility 8 | 2 5 1 Device 6 | 1 4 1 Storage 2 | 1 1 . Processor . | . . . Hackware . | . . . Protection . | . . . Artifact . | . . . Weapon 10 | 2 7 1 Energy Gun 6 | 1 4 1 Energy Cannon . | . . . Ballistic Gun 4 | 1 3 . Ballistic Cannon . | . . . Launcher . | . . . Special Weapon . | . . . Impact Weapon . | . . . Slashing Weapon . | . . . Piercing Weapon . | . . . Special Melee Weapon . | . . . Unidentified Prototypes . | . . . Parts Lost 3 | . 2 1 Power . | . . . Propulsion 2 | . 1 1 Utility 1 | . 1 . Weapon . | . . . Highest Loss Streak 1 | . 1 1 To Critical Strikes . | . . . Average Slot Usage (%) 96 | . 98 91 Engine 13 | . 13 14 Treads 25 | . 27 20 Device 14 | . 14 14 Storage 14 | . 14 14 Energy Gun 13 | . 13 14 Ballistic Gun 13 | . 13 14 Naked Turns . | . . . Heaviest Build 21 | 15 19 21 Greatest Support 40 | 40 40 40 Greatest Overweight (x) 1 | . . 1 Average Overweight (x) . | . . . Largest Inventory Capacity 10 | 8 10 10 Average Capacity 9 | 7 8 10 Most Carried 10 | 8 10 10 Average Carried 8 | 5 8 9 Final Capacity 10 | 8 10 10 Final Carried 10 | 8 10 10 Class Distribution -------------------- 100% | Mutant Dominant Class ---------------- Mutant | -10/Materials Mutant | -10/Mines Resources | -11 -10 -10 ----------- Run | Yrd Mat Min Matter Collected 880 | 300 406 174 Remotely . | . . . Salvage Created 1329 | 75 704 550 Parts 73 | 6 36 31 Haulers Intercepted . | . . . Recyclers Shooed . | . . . Parts Field Recycled . | . . . Retrieved Matter . | . . . Parts Self-Destructed . | . . . Prevented . | . . . Kills | -11 -10 -10 ------- Run | Yrd Mat Min Combat Hostiles Destroyed 26 | . 15 11 Guns 26 | . 15 11 Classes Destroyed 4 | 2 2 . Tunneler 2 | 1 . 1 Recycler 4 | 1 2 1 Swarmer 3 | . 3 . Grunt 23 | . 12 11 Best Kill Streak 4 | 1 4 4 Combat Bots Only 3 | . 3 3 Max Kills in Single Turn 2 | 1 2 1 Gunslinging 1 | . 1 . Exploded . | . . . Melee . | . . . Uniques/NPCs Destroyed . | . . . Combat | -11 -10 -10 -------- Run | Yrd Mat Min Hostile Shots Fired 164 | . 90 74 Missed 53 | . 28 25 Damage Taken 1253 | . 679 574 Core 252 | . 123 129 Absorbed by Shields . | . . . Regen/Repaired (Parts) 244 | . 244 . Core Remaining (%) 100 | 100 . . Volleys Fired 110 | 10 57 43 Largest 2 | 2 2 2 Hottest 85 | 70 70 85 Shots Fired 215 | 20 114 81 Gun 215 | 20 114 81 Cannon . | . . . Launcher . | . . . Special . | . . . Kinetic 110 | 10 57 43 Thermal 105 | 10 57 38 Explosive . | . . . Electromagnetic . | . . . Robot Hit Streak 14 | 2 14 9 Robot Miss Streak 6 | 3 6 2 Penetration Max . | . . . Secondary Targets 6 | . 3 3 Max Gunslinging Chain 1 | . 1 1 Shots Hit Robots 136 | 9 75 52 Core Hits 57 | 3 31 23 Critical Kills . | . . . Critical Parts Destroyed . | . . . Critical Strikes 2 | . 2 . Burn 2 | . 2 . Melee Attacks . | . . . Impact . | . . . Slashing . | . . . Piercing . | . . . Sneak Attacks . | . . . Combat Hostiles . | . . . Follow-up Attacks . | . . . Damage Inflicted 1802 | 109 914 779 Guns 1802 | 109 914 779 Cannons . | . . . Explosions . | . . . Melee . | . . . Ramming . | . . . Kinetic 874 | 58 433 383 Thermal 928 | 51 481 396 Explosive . | . . . Electromagnetic . | . . . Impact . | . . . Slashing . | . . . Piercing . | . . . Highest Corruption . | . . . Average Corruption . | . . . Corruption Purged . | . . . Corruption Blocked . | . . . Overload Shots . | . . . Overflow Damage . | . . . Projectiles . | . . . Explosions . | . . . Melee . | . . . Knockbacks . | . . . Impact . | . . . Kinetic . | . . . Secondary . | . . . Self-Inflicted Damage . | . . . Shots . | . . . Rammed . | . . . Targets Rammed . | . . . Kicked . | . . . Crushed . | . . . Highest Temperature 96 | 36 96 51 Average Temperature 27 | 14 41 12 Received Heat Transfer 597 | . 282 315 Siege Activations . | . . . Robots Corrupted . | . . . Combat Hostiles . | . . . Parts Fried . | . . . Impact Corruptions . | . . . Robots Melted . | . . . Combat Hostiles . | . . . Parts Melted 3 | . 3 . Heat Transferred 2368 | 148 1306 914 Parts Sabotaged . | . . . Parts Stolen . | . . . Parts Stripped . | . . . Power Chain Reactions . | . . . Alert | -11 -10 -10 ------- Run | Yrd Mat Min Peak Influence 237 | 10 237 200 Initial 42 | . 6 42 Average 65 | 3 63 86 Maximum Alert Level 1 | . 1 1 Low Security (%) 96 | 100 96 96 Level 1 3 | . 3 3 Level 2 . | . . . Level 3 . | . . . Level 4 . | . . . Level 5 . | . . . High Security . | . . . Max Security . | . . . Squads Dispatched 4 | . 4 . Investigation 3 | . 3 . Extermination . | . . . Reinforcement 1 | . 1 . Assault . | . . . Garrison . | . . . Intercept . | . . . Searches Triggered . | . . . Construction Impeded . | . . . Haulers Reinforced . | . . . Active Scanning Responses . | . . . Cargo Convoy Interrupts . | . . . Stealth | -11 -10 -10 --------- Run | Yrd Mat Min Distress Signals 2 | . 1 1 Communications Jammed . | . . . Distress Signals . | . . . Times Spotted 41 | . 29 12 Peak Tracking Total 6 | . 6 3 Tactical Retreats . | . . . Traps | -11 -10 -10 ------- Run | Yrd Mat Min Traps Triggered 6 | . 6 . Indirectly . | . . . Trap Hack Attempts . | . . . Triggered . | . . . Disarmed . | . . . Reprogrammed . | . . . Reused . | . . . Traps Extracted . | . . . Installed . | . . . Triggered . | . . . Machines | -11 -10 -10 ---------- Run | Yrd Mat Min Machines Disabled 1 | . 1 . Max in Single Turn 1 | . 1 . Machines Repaired . | . . . Machines Dismantled . | . . . Machines Sabotaged . | . . . Overloaded Fab Kills . | . . . Hacking | -11 -10 -10 --------- Run | Yrd Mat Min Machines Accessed 8 | . 8 . Terminals 5 | . 5 . Fabricators . | . . . Repair Stations 1 | . 1 . Recycling Units 2 | . 2 . Scanalyzers . | . . . Garrison Access . | . . . Total Hacks 25 | . 25 . Successful 16 | . 16 . Failed 9 | . 9 . Catastrophic . | . . . Database Lockouts . | . . . Manual . | . . . Terminals 16 | . 16 . Fabricators . | . . . Repair Stations 7 | . 7 . Recycling Units 2 | . 2 . Scanalyzers . | . . . Garrison Access . | . . . Terminal Hacks 8 | . 8 . Record 2 | . 2 . Locate Traps 1 | . 1 . Reinforcement Status 1 | . 1 . Zone Layout 4 | . 4 . Fabricator Hacks . | . . . Repair Station Hacks 6 | . 6 . Scan Component 3 | . 3 . Repair 3 | . 3 . Recycling Unit Hacks 2 | . 2 . Report Inventory 2 | . 2 . Scanalyzer . | . . . Garrison Access Hacks . | . . . Unauthorized Hacks . | . . . Terminals . | . . . Fabricators . | . . . Repair Stations . | . . . Recycling Units . | . . . Scanalyzers . | . . . Garrison Access . | . . . Data Cores Recovered . | . . . Used . | . . . Hacking Detections 6 | . 6 . Full Trace Events 3 | . 3 . Feedback Events . | . . . Feedback Blocked . | . . . Robot Schematics Acquired . | . . . Robots Built . | . . . Authchips . | . . . Time . | . . . Total Robot Build Rating . | . . . Part Schematics Acquired . | . . . Parts Built . | . . . Authchips . | . . . Time . | . . . Total Part Build Rating . | . . . Parts Repaired 3 | . 3 . Time 78 | . 78 . Parts Recycled . | . . . Recycled Matter . | . . . Retrieved Matter . | . . . Retrieved Components . | . . . Parts Scanalyzed . | . . . Part Schematics Acquired . | . . . Parts Damaged . | . . . Bothacking | -11 -10 -10 ------------ Run | Yrd Mat Min Used RIF Installer . | . . . Robots Hacked . | . . . Non-combat . | . . . Combat . | . . . Robot Hacks Applied . | . . . Relay Couplers Released . | . . . Fabnet Peak Effective % . | . . . Robots Rewired . | . . . Allies Hacked . | . . . Hacks Repelled . | . . . Allies | -11 -10 -10 -------- Run | Yrd Mat Min Total Allies . | . . . Largest Group . | . . . Highest-Rated Group . | . . . Highest-Rated Ally . | . . . Total Orders . | . . . Ally Attacks . | . . . Total Damage . | . . . Kills . | . . . Allies Corrupted . | . . . Allies Melted . | . . . Intel | -11 -10 -10 ------- Run | Yrd Mat Min Robot Analysis Total . | . . . Derelict Logs Recovered . | . . . Drone Launches . | . . . Drone Recoveries . | . . . Exploration | -11 -10 -10 ------------- Run | Yrd Mat Min Turns Passed 2617 | 219 1597 801 Spaces Moved 1098 | 107 795 196 Core 1 | 1 . . Treads 1097 | 106 795 196 Legs . | . . . Wheels . | . . . Hover . | . . . Flight . | . . . Fastest Speed 50 | 50 160 160 Average Speed 162 | 158 160 172 Slowest Speed 240 | 160 160 240 Overloaded Moves . | . . . Propulsion Burnouts . | . . . Robots Hopped . | . . . Cave-ins Triggered . | . . . Exploration Rate (%) 43 | 4 100 25 Regions Visited 2 Branch Regions 1 Pre-discovered Areas . | . . . Known Exits Taken . | . . . Unknown Exits Taken 2 | 1 1 . Scrap Searched . | . . . Spaces Dug . | . . . Terrain Destroyed . | . . . Melee . | . . . Projectile . | . . . AOE . | . . . Terrain Rammed . | . . . Walls Destroyed . | . . . Machines Disabled . | . . . Actions | -11 -10 -10 --------- Run | Yrd Mat Min Total 1726 | 133 1012 581 Wait 422 | . 95 327 Move 1096 | 106 794 196 Hop . | . . . Pick Up 32 | 9 20 3 Fast Attach 21 | 7 13 1 Attach 3 | . 2 1 Detach . | . . . Swap 13 | . 9 4 Drop 29 | 1 22 6 Fire 110 | 10 57 43 Melee . | . . . Ram . | . . . Kick . | . . . Crush . | . . . Escape Stasis . | . . . Rewire . | . . . Trap . | . . . Miscellaneous . | . . . Route ------- -11/Scrapyard -10/Materials (discovered 5 exits: [*Mat x3] / [*Min x2]) -10/Mines History --------- Turn | Location | Event 41 | -11/Scrapyard | Discovered new exit (range 14) 220 | -11/Scrapyard | Entered Materials 303 | -10/Materials | Build established: Mutant 339 | -10/Materials | Discovered new exit (range 18) 998 | -10/Materials | Discovered new exit (range 6) 1142 | -10/Materials | Discovered new exit (range 4) 1336 | -10/Materials | Discovered new exit (range 4) 1475 | -10/Materials | Discovered new exit (range 15) 1528 | -10/Materials | Repaired Lgt. Treads 1556 | -10/Materials | Repaired Assault Rifle 1583 | -10/Materials | Repaired Sml. Laser 1817 | -10/Materials | Entered Mines 1827 | -10/Mines | Core integrity fell below 50% 1932 | -10/Mines | Excavation squad dispatched 1932 | -10/Mines | A large section of the Mines collapsed 2182 | -10/Mines | Excavation squad dispatched 2432 | -10/Mines | Excavation squad dispatched 2550 | -10/Mines | Core integrity fell below 20% 2618 | -10/Mines | Destroyed by G-34 Mercenary with Small Laser Last Messages --------------- 02594_ K-01 Serf collects debris. 02596_ U-05 Engineer lays Concrete. 02597_ Acquired 10 matter. 02597_ U-05 Engineer lays Concrete. 02598_ K-01 Serf collects debris. 02600_ U-05 Engineer lays Concrete. 02600_ Dropped Ion Engine. 02601_ U-05 Engineer lays Concrete. 02601_ K-01 Serf collects debris. 02601_ Acquired 10 matter. 02604_ K-01 Serf collects debris. 02604_ U-05 Engineer lays Concrete. 02605_ K-01 Serf collects debris. 02605_ U-05 Engineer lays Concrete. 02608_ K-01 Serf collects debris. 02608_ U-05 Engineer lays Concrete. 02611_ Dropped Ion Engine. 02612_ K-01 Serf collects debris. 02617_ U-05 Engineer lays Concrete. 02617_ K-01 Serf collects debris. Map ----- +----------------------------------------------------+ | | | | | ?????????????????????????????????????????????????? | | ???????????????????????????????#########?????????? | | ????????????????????#########??# #?????????? | | ??????????##???###### | #### #?????????? | | ???######## ###! ##! %% """ #?????????? | | ? ! =% =%= = % """ #?????????? | | ? = = % #### """ #?????????? | | ????##### # ######## #??# #?????????? | | ??????????####### #??????# ############?????????? | | ????????????????# #??????# #?####??????????? | | ????????????????# #####??# ### ##?????????? | | ????????????????#!=%* #??## ### ## #?????????? | | ????????????????##### #???#;#?# *# #?????????? | | ????????????????????# #???# ### %! #?????????? | | ????????????????????# ##### t ##????????? | | ????????????????????# ; #????????? | | ????????????????????# ; ;! u ; #????????? | | ????????????????????### =%! ; ; ##????????? | | ??????????????????????#; ; ! ######?????????? | | ??????????????????????#;% ; ##??????????????? | | ??????????????????????# **= ##???????????????? | | ??????????????????????## []k% ######???#####???? | | ???????????????????????# ==|%| ##### #???? | | ???????????????????????# @!%!%= t; k #???? | | ???????????????????????# |!*t! t ##???? | | ???????????????????????#### =!= ! ##???? | | ??????????????????????????##;%*%[*%= #???? | | ???????????????????????????##g###;*% #???? | | ????????????????????????????# #?## ##???? | | ????????????????????????????#%#??## ##????? | | ????????????????????# #######!#???## ###?????? | | ????????????????????# %#????# ##???????? | | ?????????????????????########%#????## ##????????? | | ????????????????????????????# #?????####?????????? | | ????????????????????????????# #??????????????????? | | ????????????????????????????# #??????????????????? | | ????????????????????????????# #??????????????????? | | ????????????????????????????# #??????????????????? | | ????????????????????????????# ??????????????????? | | ????????????????????????????# ??????????????????? | | ????????????????????????????###??????????????????? | | ?????????????????????????????????????????????????? | | ?????????????????????????????????????????????????? | | ?????????????????????????????????????????????????? | | ?????????????????????????????????????????????????? | | ?????????????????????????????????????????????????? | | ?????????????????????????????????????????????????? | | ?????????????????????????????????????????????????? | +----------------------------------------------------+ Best States ------------- Heat Dissipation 35 Energy Generation 10 Energy Capacity 250 Matter Stores 300 Matter Capacity 300 Sight Range 16 Terrain Scan Range 16 Terrain Scan Density 10 Evasion (%) 40 Recoil Reduction 2 Item Schematics ----------------- None Robot Schematics ------------------ None Fabricated ------------ Nothing Alien Tech Used ----------------- None Achievements -------------- None Challenges ------------ None Game ------ Seed PlatingShrapnelPenetrator Manual? 0 Play Time 00:28:24 Cumulative 99.5 hours Start 2024.07.24 @ 21:15:40 End 2024.07.24 @ 22:37:29 Sessions 1 Manual Loads 0 Difficulty Rogue Special Mode None Game No. 46 Rogue 36 Adventurer 10 Explorer 0 Win Type - Total 1 Types 0/0/1/0/0/0/0/0/0 Lore% 40 Gallery% 47 Achievement% 39 Wizard Run 0 Options --------- Layout 1 ASCII 0 Keyboard 0 Movement Mouse Keybinds 0 Fullscreen 2 Font 32/SmallcapsGlow Map View 50x35 Zoom Use 0% Tactical HUD 1 Map Filters NONE Filters NONE Steam 0 RUN: 85e2dcaa-56f1-4591-a7ab-af39c14453a6